fUST/lending_fUST_20240709
["ID","MTS","AMOUNT","RATE_DAILY","PERIOD"]
[331541840,1720471724472,-155.02402872,0.00016255,2]
[331541841,1720471724494,-175.89790425,0.00016255,2]
[331541842,1720471726617,173.50976027,0.00016255,2]
[331541843,1720471767002,-220.96962038,0.00016255,2]
[331541844,1720471767023,-165.17058968,0.00016255,2]
[331541845,1720471767045,-160.03609292,0.00016255,2]
[331541846,1720471767066,-777.37650833,0.00016255,2]
[331541847,1720471770263,154.66746495,0.00016255,2]
[331541848,1720471772617,374.63942513,0.00016255,2]
[331541850,1720471800565,-166.666666,0.00017198,2]
[331541851,1720471800594,-824.12361798,0.00017345,2]
[331541852,1720471800628,-79.22353912,0.00017345,2]
[331541853,1720471800658,-911.56674486,0.00017377,2]
[331541854,1720471800692,-990.79028398,0.00017377,2]
[331541855,1720471800730,-314.24224905,0.00017377,2]
[331541856,1720471827850,-154.66746495,0.00016255,2]
[331541857,1720471827871,-526.07252504,0.00016255,2]
[331541858,1720471827892,-154.82195167,0.00016255,2]
[331541859,1720471827913,-154.66746495,0.00016255,2]
[331541860,1720471827935,-2833.91780134,0.00016255,2]
[331541861,1720471827958,-307.210963,0.00016255,2]
[331541862,1720471828355,324.55870979,0.00016255,2]
[331541889,1720471832830,-612.735,0.00017377,2]
[331541890,1720471832842,-170.66572211,0.00017377,2]
[331541891,1720471832852,-213.823578,0.000174,2]
[331541892,1720471832862,-250.0,0.00017661,2]
[331541893,1720471832872,-166.666666,0.00017667,2]
[331541894,1720471832882,-166.666666,0.00018136,2]
[331541895,1720471832891,-115.84237181,0.00018605,2]
[331541924,1720471836471,212.02110912,0.00016255,2]
[331541938,1720471838438,-50.82429419,0.00018605,2]
[331541940,1720471838449,-154.68290005,0.00018899,2]
[331541941,1720471838459,-216.18224144,0.00018899,2]
[331541942,1720471838468,-276.72257006,0.00018899,2]
[331542090,1720471846246,402.47381774,0.00016255,2]
[331542104,1720471846797,-318.7185046,0.00018899,2]
[331542105,1720471846808,-139.45448427,0.00018899,2]
[331542123,1720471850192,154.66746495,0.00016255,2]
[331542124,1720471958830,236.23891596,0.00014999,2]
[331542125,1720471965024,154.66746495,0.00014999,2]
[331542126,1720472004135,776.87613383,0.00014999,2]
[331542127,1720472004368,595.7726347,0.00014999,2]
[331542128,1720472014289,3134.19580146,0.00014999,2]
[331542129,1720472015340,190.66772082,0.00014999,2]
[331542130,1720472038279,154.91459927,0.00014999,2]
[331542131,1720472060294,157.4770841,0.00014999,2]
[331542133,1720472155986,3005.27552071,0.00014999,4]
[331542134,1720472158013,154.91459927,0.00014999,2]
[331542135,1720472175765,673.86846721,0.00014999,2]
[331542136,1720472201823,157.4770841,0.00014999,2]
[331542137,1720472214391,526.07252504,0.00014999,2]
[331542138,1720472278355,159.35113188,0.00014999,2]
[331542139,1720472307448,272.55736819,0.00014999,2]
[331542140,1720472329986,154.68290005,0.00014999,2]
[331542141,1720472354822,157.4770841,0.00014999,2]
[331542142,1720472357685,154.68290005,0.00014999,2]
[331542143,1720472370825,157.4770841,0.00014999,2]
[331542144,1720472387692,154.68290005,0.00014999,2]
[331542145,1720472401581,15414.79924926,0.00014999,2]
[331542146,1720472405587,2170.41343542,0.00014999,2]
[331542147,1720472410345,2099.6884772,0.00014999,2]
[331542148,1720472414436,19385.69402743,0.00014999,2]
[331542149,1720472424411,154.83742071,0.00014999,2]
[331542150,1720472456413,674.83013214,0.00014999,2]
[331542151,1720472480007,154.68290005,0.00014999,2]
[331542152,1720472482382,159.98872952,0.00014999,2]
[331542153,1720472500325,9855.0,0.00016,2]
[331542154,1720472519510,179.85455723,0.00014999,2]
[331542155,1720472528783,154.83742071,0.00016,2]
[331542157,1720472561899,245.16910268,0.00014999,2]
[331542158,1720472593100,248.08835543,0.00014999,2]
[331542160,1720472605119,200.88921051,0.00014999,2]
[331542161,1720472605336,208.04822449,0.00014999,2]
[331542162,1720472610138,300.57247778,0.00014999,2]
[331542163,1720472614060,514.29728027,0.00014999,2]
[331542164,1720472622837,157.4770841,0.00014999,2]
[331542165,1720472627023,154.68290005,0.00014999,2]
[331542166,1720472642470,13144.22535779,0.00014999,2]
[331542167,1720472646854,205.3687641,0.00014999,2]
[331542169,1720472700015,371.36715798,0.00014999,2]
[331542170,1720472701012,426.80021744,0.00014999,2]
[331542172,1720472707891,908.54949828,0.00014999,2]
[331542173,1720472710293,154.68290005,0.00014999,2]
[331542174,1720472712882,1319.12597811,0.00014999,2]
[331542175,1720472714405,193.69798923,0.00014999,2]
[331542176,1720472716537,1987.40071653,0.00014999,2]
[331542177,1720472723250,374.75657396,0.00014999,2]
[331542179,1720472740146,1707.09413431,0.00014999,2]
[331542180,1720472752787,725.25724813,0.00014999,2]
[331542181,1720472752884,3245.31649808,0.00014999,2]
[331542182,1720472755186,777.37650833,0.00014999,2]
[331542183,1720472768552,251.71857067,0.00014999,2]
[331542184,1720472769441,525.93863422,0.00014999,2]
[331542185,1720472772467,214.95606653,0.00014999,2]
[331542186,1720472775286,949.52863578,0.00015,2]
[331542187,1720472776529,156.53647675,0.00014999,2]
[331542188,1720472781849,157.21776806,0.00014999,2]
[331542189,1720472786361,154.91459617,0.00014999,2]
[331542190,1720472809708,1158.13050949,0.00014999,2]
[331542191,1720472812808,306.93195716,0.00014999,2]
[331542192,1720472815853,209.22009832,0.00014999,2]
[331542193,1720472823945,1974.46480504,0.00014999,2]
[331542195,1720472830477,458.30426935,0.00014999,2]
[331542198,1720472850616,3773.14321747,0.00014999,2]
[331542199,1720472858043,1986.54600025,0.00014999,2]
[331542200,1720472867296,312.15040345,0.00014999,2]
[331542201,1720472869886,158.23203514,0.00014999,2]
[331542202,1720472881256,374.5222763,0.00014999,2]
[331542203,1720472882675,181.84215111,0.00014999,2]
[331542204,1720472886489,566.66102029,0.00014999,2]
[331542205,1720472898223,154.68290005,0.00014999,2]
[331542206,1720472899990,155.34859445,0.00014999,2]
[331542207,1720472900803,725.25724813,0.00014999,2]
[331542208,1720472902567,526.07252504,0.00014999,2]
[331542209,1720472909633,200.88921051,0.00014999,2]
[331542211,1720472913400,154.68290005,0.00014999,2]
[331542212,1720472918652,-190.98908899,0.00016155,2]
[331542213,1720472918681,-203.01238685,0.00016155,2]
[331542214,1720472918713,-300.0,0.00016254,2]
[331542215,1720472918742,-311.29798479,0.00016255,2]
[331542216,1720472918776,-122.77925358,0.00016255,2]
[331542217,1720472918805,-776.87613383,0.00016255,2]
[331542218,1720472918833,-63.86927215,0.00016255,2]
[331542219,1720472949874,209.22009832,0.00014999,2]
[331542220,1720472950909,1489.50426345,0.00014999,2]
[331542222,1720472976409,154.68290005,0.00014999,2]
[331542223,1720472979873,157.43386476,0.00014999,2]
[331542224,1720472982978,458.30426935,0.00014999,2]
[331542225,1720472989322,179.85455723,0.00014999,2]
[331542226,1720472990002,2126.99307263,0.00014999,2]
[331542227,1720472994168,187.6858195,0.00014999,2]
[331542228,1720472997982,458.30426935,0.00014999,2]
[331542229,1720472998916,758.295842,0.00015,2]
[331542231,1720473003236,934.12399024,0.00014999,2]
[331542232,1720473005540,566.37606527,0.00014999,2]
[331542233,1720473007591,808.0087546,0.00015,2]
[331542234,1720473011091,2421.99241206,0.00015,2]
[331542235,1720473027903,157.98223549,0.00014999,2]
[331542288,1720473033476,2045.32526605,0.00014999,2]
[331542290,1720473037728,-190.98908899,0.00016055,2]
[331542291,1720473037740,-300.0,0.00016254,2]
[331542292,1720473037751,-2098.81091116,0.00016255,2]
[331542293,1720473038086,-341.9273687,0.00016255,2]
[331542366,1720473040341,-174.38535329,0.00016255,2]
[331542368,1720473040351,-566.66102029,0.00016255,2]
[331542370,1720473040360,-525.8047434,0.00016255,2]
[331542372,1720473040370,-203.44890531,0.00016255,2]
[331542392,1720473041219,4713.32224949,0.00014999,2]
[331542446,1720473043802,725.25724813,0.00014999,2]
[331542479,1720473082225,160.7226363,0.00014999,2]
[331542480,1720473098352,-3217.75457575,0.00016255,2]
[331542481,1720473098374,-155.34859445,0.00016255,2]
[331542482,1720473105084,478.36783546,0.00016255,2]
[331542483,1720473116933,182.26110348,0.00016255,2]
[331542484,1720473120386,267.71924001,0.00016255,2]
[331542485,1720473123130,2420.30621376,0.00016255,2]
[331542486,1720473125221,777.12632108,0.00016255,2]
[331542487,1720473133712,318.64751185,0.00016255,2]
[331542488,1720473138268,516.79936011,0.00016255,2]
[331542489,1720473193261,-691.33834976,0.00016255,2]
[331542490,1720473193284,-261.61722225,0.00016255,2]
[331542491,1720473193305,-154.68290005,0.00016255,2]
[331542494,1720473273971,238.80635761,9.9e-05,2]
[331542495,1720473274358,250.0,0.00015567,2]
[331542496,1720473324505,3000.0,0.00015437,2]
[331542497,1720473327773,-466.39433741,0.00016155,2]
[331542498,1720473327798,-155.34859445,0.00016255,2]
[331542499,1720473327822,-844.12159152,0.00016255,2]
[331542500,1720473327848,-1124.07729006,0.00016255,2]
[331542501,1720473327870,-200.88921051,0.00016255,2]
[331542503,1720473377037,491.05706512,0.00015998,2]
[331542504,1720473377490,3278.553256,0.00015503,2]
[331542506,1720473412369,154.68290005,0.00014999,2]
[331542507,1720473424993,-527.87691344,0.00016255,2]
[331542508,1720473425015,-202.22767195,0.00016255,2]
[331542509,1720473425038,-2093.73523972,0.00016255,2]
[331542510,1720473447140,2409.1517219,0.00015618,2]
[331542513,1720473496223,20073.2447402,0.00015618,2]
[331542514,1720473542777,790.26719964,0.00014999,2]
[331542515,1720473557295,-154.68290005,0.00016255,2]
[331542516,1720473557317,-200.9470781,0.00016255,2]
[331542517,1720473557338,-155.26748535,0.00016255,2]
[331542518,1720473557360,-282.93616103,0.00016255,2]
[331542519,1720473557382,-676.11600164,0.00016255,2]
[331542520,1720473557403,-155.3925073,0.00016255,2]
[331542521,1720473564464,154.68290005,0.00014999,2]
[331542522,1720473580714,181.84215111,0.00014999,2]
[331542523,1720473630252,-3078.51196359,0.00016255,2]
[331542524,1720473630274,-1500.0,0.00016255,2]
[331542525,1720473630297,-1104.60661146,0.00016255,2]
[331542526,1720473637776,548.86451441,0.00016255,2]
[331542527,1720473661970,1684.8469642,0.00015523,2]
[331542528,1720473688324,154.68290005,0.00014999,2]
[331542529,1720473693952,240.83790379,0.00014999,2]
[331542530,1720473697824,4710.72024946,0.00014999,2]
[331542531,1720473699916,165.08616365,0.00014999,2]
[331542532,1720473704106,403.37885226,0.00014999,2]
[331542533,1720473704900,154.68290005,0.00014999,2]
[331542534,1720473705005,454.87041268,0.00014999,2]
[331542535,1720473705171,200.9470781,0.00014999,2]
[331542536,1720473705473,3755.7198216,0.00015523,2]
[331542537,1720473705850,948.84245203,0.00015,2]
[331542538,1720473709408,3137.77932824,0.00014999,2]
[331542540,1720473731052,1434.44237247,0.00014999,2]
[331542541,1720473743783,154.68290005,0.00014999,2]
[331542542,1720473745081,310.8143884,0.00015,2]
[331542544,1720473753928,1463.29635585,0.00014999,2]
[331542545,1720473760128,1634.59229075,0.00014999,2]
[331542546,1720473766129,2420.55776569,0.00015,2]
[331542547,1720473771960,1039.06688618,0.00015,2]
[331542549,1720473799582,284.542707,0.00015495,2]
[331542550,1720473813210,2132.45671248,0.00014999,2]
[331542551,1720473819504,318.617778,0.00014999,2]
[331542552,1720473822918,154.96125969,0.00015,2]
[331542553,1720473827914,154.83742071,0.00014999,2]
[331542554,1720473828823,789.56916384,0.00014999,2]
[331542555,1720473829950,11029.28750384,0.00014998,2]
[331542556,1720473830448,183.17870589,0.00014999,2]
[331542557,1720473830535,226.9008053,0.00015,2]
[331542559,1720473847264,154.99194137,0.00014999,2]
[331542560,1720473847620,403.37885226,0.00014999,2]
[331542561,1720473853813,200.9470781,0.00014999,2]
[331542562,1720473856993,4696.33537857,0.00014999,2]
[331542563,1720473862264,154.68290005,0.00014999,2]
[331542564,1720473869140,16241.85902907,0.00014999,2]
[331542565,1720473883344,198.09892074,0.00014999,2]
[331542566,1720473885782,154.83742071,0.00014999,2]
[331542567,1720473890905,269.67866182,0.00014999,2]
[331542568,1720473896784,154.68290005,0.00014999,2]
[331542569,1720473900147,808.0087546,0.00015,2]
[331542570,1720473901990,165.08616365,0.00014999,2]
[331542571,1720473907772,366.0,0.00015983,2]
[331542572,1720473913045,2126.43441341,0.00014999,2]
[331542573,1720473922085,155.50749252,0.00014999,2]
[331542574,1720473932550,4689.05538713,0.00014999,2]
[331542575,1720473933861,3000.0,0.00015705,2]
[331542576,1720473944644,201.04924386,0.00014999,2]
[331542577,1720473955813,154.86836189,0.00014999,2]
[331542578,1720473959633,510.1563651,0.00014999,2]
[331542579,1720473986928,156.56594068,0.00014999,2]
[331542580,1720474000787,155.000775,0.00014999,2]
[331542581,1720474001194,200.9470781,0.00014999,2]
[331542582,1720474035341,4961.91957937,0.00015986,2]
[331542583,1720474036301,155.14646203,0.00014999,2]
[331542584,1720474036348,154.83742071,0.00014999,2]
[331542585,1720474053804,270.74208164,0.00014999,2]
[331542587,1720474063179,15126.99784793,0.00014999,2]
[331542588,1720474069019,4696.33537857,0.00014999,2]
[331542589,1720474069993,191.97320683,0.00014999,2]
[331542590,1720474110304,-671.1312369,0.00015814,2]
[331542591,1720474110333,-159.31222367,0.00015986,2]
[331542592,1720474113050,240.93868019,0.00014999,2]
[331542593,1720474126969,221.67391521,0.00014999,2]
[331542594,1720474142108,203.8628805,0.00014999,2]
[331542595,1720474144918,200.9470781,0.00014999,2]
[331542596,1720474168880,902.58615994,0.00014999,2]
[331542597,1720474172776,159.55756183,0.00014999,2]
[331542599,1720474187434,195.84578996,0.00014999,2]
[331542600,1720474209072,154.83742071,0.00014999,2]
[331542601,1720474218320,934.55932162,0.00014999,2]
[331542602,1720474225841,154.83742071,0.00014999,2]
[331542637,1720474232563,-166.666666,0.00016438,2]
[331542639,1720474232573,-358.0,0.00016637,2]
[331542641,1720474232583,-5158.065328,0.00016652,2]
[331542643,1720474232592,-2064.78578097,0.00016772,2]
[331542646,1720474232605,-2349.33745249,0.00016772,2]
[331542648,1720474232616,-5661.5,0.00016772,2]
[331542714,1720474239118,-885.39104552,0.00016255,2]
[331542715,1720474239132,-1696.8837749,0.00016772,2]
[331542716,1720474239151,-272.65805804,0.00016772,2]
[331542717,1720474239164,-166.666666,0.00016823,2]
[331542718,1720474239180,-500.0,0.00016878,2]
[331542719,1720474239196,-189.11439488,0.00016878,2]
[331542720,1720474239214,-92.10911074,0.00016878,2]
[331542721,1720474239227,-415.41949915,0.00016878,2]
[331542722,1720474239241,-28.23440098,0.00016878,2]
[331542795,1720474246174,-2281.8649205,0.00016155,2]
[331542796,1720474246184,-246.13656487,0.00016255,2]
[331542797,1720474246200,-471.76559902,0.00016878,2]
[331542798,1720474246210,-500.0,0.00016878,2]
[331542799,1720474246219,-24900.0,0.00016879,2]
[331542800,1720474246229,-166.666666,0.00017208,2]
[331542801,1720474246239,-166.666666,0.00017592,2]
[331542802,1720474246254,-166.666666,0.00017977,2]
[331542803,1720474246264,-908.54949828,0.0001818,2]
[331542804,1720474246274,-2117.84258891,0.0001818,2]
[331542805,1720474246284,-234.1276361,0.0001818,2]
[331542806,1720474246295,-510.80589136,0.0001818,2]
[331542807,1720474246304,-1813.82787667,0.0001818,2]
[331542808,1720474246313,-166.666666,0.00018362,2]
[331542809,1720474246323,-191.07976262,0.00018798,2]
[331542810,1720474246332,-276.35150394,0.00018898,2]
[331542811,1720474246341,-150.0,0.000189,2]
[331542812,1720474246351,-822.37122239,0.00019039,3]
[331542813,1720474246360,-197.26562919,0.00019039,2]
[331542814,1720474246369,-250.0,0.00019041,2]
[331542815,1720474246378,-162.0083,0.00019178,2]
[331542816,1720474246388,-161.577342,0.00019178,2]
[331542817,1720474246397,-620.00073523,0.0001995,2]
[331542818,1720474246406,-500.0,0.0002,2]
[331542819,1720474246415,-154.68290005,0.0002,2]
[331542820,1720474246424,-177.48497928,0.0002,2]
[331542821,1720474246433,-620.00003676,0.00020948,2]
[331542822,1720474246442,-750.0,0.00021096,2]
[331542823,1720474246451,-257.0161833,0.00021096,2]
[331542824,1720474246461,-1065.44743963,0.00021917,2]
[331542825,1720474246470,-620.00000184,0.00021995,2]
[331542826,1720474246479,-620.00000009,0.00023095,2]
[331542827,1720474246489,-284.542707,0.00023242,2]
[331542828,1720474246498,-2881.0,0.00023978,2]
[331542829,1720474246507,-620.0,0.00024249,2]
[331542830,1720474246516,-155.846958,0.00024647,7]
[331542831,1720474246526,-191.40781,0.00024647,7]
[331542832,1720474246534,-151.0,0.00024647,7]
[331542833,1720474246544,-380.0,0.00024658,2]
[331542834,1720474246553,-206.3072956,0.00024877,2]
[331542835,1720474246562,-243.42963711,0.00025,2]
[331542836,1720474246571,-151.0,0.00025271,7]
[331542837,1720474246580,-160.702515,0.00025281,7]
[331542838,1720474246589,-246.01,0.00025288,3]
[331542839,1720474246599,-12108.74998736,0.0002529,2]
[331542840,1720474246608,-151.0,0.0002529,7]
[331542841,1720474246617,-162.374387,0.0002529,7]
[331542842,1720474246627,-492.02,0.00025298,3]
[331542843,1720474246636,-11317.1749417,0.00025308,3]
[331542844,1720474246716,-12108.74998733,0.00025318,2]
[331542845,1720474246725,-151.0,0.00025318,7]
[331542846,1720474246734,-300.75929111,0.00025327,2]
[331542847,1720474246745,-151.0,0.00025345,7]
[331542848,1720474246754,-12108.74998733,0.00025346,2]
[331542849,1720474246764,-300.0,0.00025358,2]
[331542850,1720474246774,-7575.71,0.00025363,3]
[331542851,1720474246783,-738.03,0.00025363,3]
[331542852,1720474246795,-12108.74998733,0.00025373,2]
[331542853,1720474246805,-22634.3498834,0.00025381,3]
[331542854,1720474246814,-580.09386634,0.0002539,5]
[331542855,1720474354936,155.45061183,0.00014999,2]
[331542856,1720474356484,532.07448423,0.00014999,2]
[331542865,1720474623802,160.02135444,0.00014999,2]
[331542866,1720474628537,397.40026828,0.00014999,2]
[331542867,1720474642552,7234.07750944,0.0001,2]
[331542868,1720474644519,391.29109009,0.00014999,2]
[331542869,1720474647071,154.83742071,0.00014999,2]
[331542874,1720474717539,280.43873428,0.00014999,2]
[331542875,1720474767262,10000.0,0.000225,30]
[331542876,1720474789191,480.24,0.000225,30]
[331542963,1720475432801,-451.26255636,0.00015995,2]
[331542965,1720475432810,-249.63402652,0.00018121,2]
[331543048,1720475438202,-0.36597348,0.00018121,2]
[331543049,1720475438212,-166.666666,0.0001887,2]
[331543050,1720475438222,-300.0,0.00019025,2]
[331543051,1720475438232,-300.0,0.00019025,2]
[331543052,1720475438242,-24900.0,0.00019026,2]
[331543053,1720475438252,-246.3635761,0.00019041,2]
[331543054,1720475438262,-162.0083,0.00019178,2]
[331543055,1720475438272,-7443.12310268,0.00019333,2]
[331543056,1720475438284,-3049.96853442,0.00019333,2]
[331543057,1720475438294,-166.666666,0.00019384,2]
[331543058,1720475438303,-166.666666,0.00019899,2]
[331543059,1720475438375,-157.26883324,0.00020399,2]
[331543060,1720475438385,-2208.28587315,0.000204,2]
[331543061,1720475438395,-166.666666,0.00020413,2]
[331543062,1720475438405,-287.0,0.00020737,2]
[331543063,1720475438415,-166.666666,0.00020928,2]
[331543064,1720475438428,-420.0,0.00020928,2]
[331543065,1720475438438,-667.06018351,0.00021,2]
[331543066,1720475438449,-1150.45406602,0.00021,2]
[331543067,1720475438460,-750.0,0.00021096,2]
[331543068,1720475438470,-159.943099,0.00021096,2]
[331543069,1720475438480,-166.666666,0.00021442,2]
[331543070,1720475438490,-622.35300918,0.0002205,2]
[331543071,1720475438500,-646.5227033,0.0002205,2]
[331543072,1720475438510,-170.77187555,0.00022455,2]
[331543073,1720475438519,-428.141796,0.000225,2]
[331543074,1720475438529,-763.61573457,0.000225,2]
[331543075,1720475438539,-225.66798593,0.000225,2]
[331543076,1720475438549,-213.89191652,0.000225,2]
[331543077,1720475438558,-2142.70778652,0.000225,2]
[331543078,1720475438568,-155.29816351,0.000225,2]
[331543079,1720475438577,-181.8878663,0.000225,2]
[331543080,1720475438588,-1065.44743963,0.00022942,2]
[331543081,1720475438598,-200.0,0.00023,2]
[331543082,1720475438608,-587.0,0.0002302,2]
[331543083,1720475438618,-620.11765046,0.00023153,2]
[331543084,1720475438628,-621.32613517,0.00023153,2]
[331543085,1720475438638,-151.0,0.00023193,7]
[331543086,1720475438648,-241.98105013,0.000236,2]
[331543087,1720475438658,-155.0246491,0.00023968,2]
[331543088,1720475438669,-3317.78246872,0.000241,2]
[331543089,1720475438679,-150.0,0.00024123,2]
[331543090,1720475438688,-246.01,0.0002418,3]
[331543091,1720475438699,-738.03,0.0002418,3]
[331543092,1720475438708,-492.02,0.0002419,3]
[331543093,1720475438717,-53649.9752177,0.0002419,3]
[331543094,1720475438726,-500.0,0.00024199,2]
[331543095,1720475438736,-217.49645914,0.00024199,2]
[331543096,1720475438746,-641.1424334,0.00024199,2]
[331543097,1720475438755,-172.40765056,0.00024199,2]
[331543098,1720475438765,-500.0,0.00024199,2]
[331543099,1720475438775,-500.0,0.00024199,2]
[331543100,1720475438785,-469.86589305,0.00024199,2]
[331543101,1720475438794,-330.00616289,0.00024199,2]
[331543102,1720475438804,-500.0,0.00024199,2]
[331543103,1720475438814,-500.0,0.00024199,2]
[331543104,1720475438824,-336.12492158,0.00024199,2]
[331543105,1720475438833,-500.0,0.00024199,2]
[331543106,1720475438844,-159.97871461,0.00024199,2]
[331543107,1720475438853,-500.0,0.00024199,2]
[331543108,1720475438863,-500.0,0.00024199,2]
[331543109,1720475438872,-500.0,0.00024199,2]
[331543110,1720475438882,-536.20685773,0.00024199,2]
[331543111,1720475438892,-200.41200048,0.00024199,2]
[331543112,1720475438902,-500.0,0.00024199,2]
[331543113,1720475438912,-500.0,0.00024199,2]
[331543114,1720475438922,-500.0,0.00024199,2]
[331543115,1720475438932,-113953.57227662,0.000242,2]
[331543116,1720475438942,-151.0,0.000242,7]
[331543117,1720475438953,-620.00588252,0.0002431,2]
[331543118,1720475438964,-620.06630676,0.0002431,2]
[331543119,1720475438974,-3317.78246869,0.00024425,2]
[331543120,1720475438984,-250.0,0.00024671,2]
[331543121,1720475438994,-3317.78246869,0.00024751,2]
[331543122,1720475439004,-3317.78246869,0.00025076,2]
[331543123,1720475439014,-231.153362,0.00025077,7]
[331543124,1720475439024,-1500.0,0.00025077,5]
[331543125,1720475439035,-1500.0,0.00025077,5]
[331543126,1720475439046,-1500.0,0.00025077,5]
[331543127,1720475439056,-1500.0,0.00025077,5]
[331543128,1720475439066,-1500.0,0.00025077,5]
[331543129,1720475439076,-1500.0,0.00025077,5]
[331543130,1720475439087,-1069.113219,0.00025077,5]
[331543131,1720475439098,-5290.80510559,0.00025091,2]
[331543132,1720475439108,-366.0,0.00025154,2]
[331543133,1720475439118,-17883.3250726,0.0002516,3]
[331543134,1720475439129,-300.0,0.00025197,2]
[331543135,1720475439140,-350.0,0.00025219,2]
[331543136,1720475439150,-202.14376802,0.0002525,2]
[331543137,1720475439161,-373.7955816,0.00025263,12]
[331543138,1720475439171,-17883.3250726,0.00025321,3]
[331543139,1720475439232,-823.0,0.00025322,2]
[331543140,1720475439243,-35766.6501451,0.00025331,3]
[331543141,1720475439253,-88888.0,0.00025341,3]
[331543142,1720475439264,-189.17055998,0.0002539,2]
[331543143,1720475439274,-2208.28587315,0.000254,2]
[331543144,1720475439285,-756.13182,0.000254,2]
[331543145,1720475439297,-3317.78246869,0.00025401,2]
[331543146,1720475439307,-620.0,0.00025462,2]
[331543147,1720475439318,-35766.6501451,0.00025481,3]
[331543148,1720475439329,-71533.3002903,0.00025491,3]
[331543149,1720475439343,-55465.841802,0.00025501,2]
[331543150,1720475439360,-2742.75694069,0.00025501,2]
[331543151,1720475439373,-21052.52939085,0.00025501,2]
[331543152,1720475439385,-12058.68289874,0.00025501,2]
[331543156,1720475440466,-7558.18630403,0.00025501,2]
[331543196,1720475443347,-7431.809033,0.00025501,2]
[331543197,1720475443363,-8856.93725742,0.00025501,2]
[331543198,1720475443375,-22167.73353967,0.00025501,2]
[331543205,1720475443612,-384.435735,0.00025501,2]
[331543206,1720475443642,-14977.36178105,0.00025501,2]
[331543251,1720475446481,-721.219865,0.00025491,3]
[331543253,1720475446509,-3155.89549134,0.00025491,3]
[331543254,1720475446537,-9542.46464366,0.00025491,3]
[331543255,1720475446552,-160365.48418137,0.00025501,2]
[331543256,1720475446568,-52127.6117321,0.00025501,2]
[331543257,1720475446583,-620.00029413,0.00025526,2]
[331543258,1720475446598,-620.00331534,0.00025526,2]
[331543259,1720475446613,-492.02,0.0002555,3]
[331543260,1720475446628,-984.04,0.0002556,3]
[331543261,1720475446642,-450.0,0.00025767,2]
[331543262,1720475446657,-191.07976262,0.00025869,2]
[331543263,1720475446671,-155.59454808,0.00025869,2]
[331543264,1720475446687,-376.04496946,0.00025869,2]
[331543265,1720475446702,-197.26562919,0.00025902,2]
[331543266,1720475446717,-207.92285488,0.00025902,2]
[331543267,1720475446732,-1003.85514527,0.00026,12]
[331543268,1720475446747,-550.0,0.00026315,2]
[331543269,1720475446761,-209.72130719,0.00026574,2]
[331543270,1720475446776,-932.60140374,0.00026574,2]
[331543271,1720475446791,-215.61294534,0.00026574,2]
[331543272,1720475446807,-620.0,0.00026735,2]
[331543273,1720475446821,-620.00001471,0.00026802,2]
[331543274,1720475446831,-620.00016577,0.00026802,2]
[331543276,1720475446840,-650.0,0.00026863,2]
[331543282,1720475446939,-145166.983296,0.000269,2]
[331543283,1720475446962,-464.24405252,0.000269,2]
[331543284,1720475446979,-879.88946066,0.00025869,2]
[331543285,1720475446989,-38298.15341582,0.000269,2]
[331543286,1720475446998,-30000.0,0.00027184,2]
[331543287,1720475447008,-750.0,0.00027195,2]
[331543288,1720475447017,-2588.84827711,0.00027272,2]
[331543290,1720475447027,-258.80025544,0.00027272,2]
[331543292,1720475447036,-500.0,0.00027397,2]
[331543294,1720475447045,-415.91488387,0.00027397,2]
[331543296,1720475447055,-500.0,0.00027397,2]
[331543298,1720475447064,-500.0,0.00027397,2]
[331543300,1720475447073,-500.0,0.00027397,2]
[331543302,1720475447082,-500.0,0.00027397,2]
[331543304,1720475447091,-500.0,0.00027397,2]
[331543306,1720475447101,-500.0,0.00027397,2]
[331543308,1720475447110,-500.0,0.00027397,2]